Cogmind - Beta 17 @@@ ROGUE MODE // 2026.07.12 @ 19:32:16 Player: Skysub Result: Destroyed by S-27 Virus with Autogun Performance ------------- Evolutions (5) 2500 Regions Visited (8) 1600 Robots Destroyed (10) 50 Value Destroyed (144) 144 Prototype IDs (0) 0 Alien Tech Used (0) 0 Bonus (470) 470 TOTAL SCORE: 4764 Bonus ------- Pacifist 470 Cogmind --------- Core Integrity 0/1000 Matter 49/300 Energy 55/100 System Corruption 11% Temperature Cool (2) Movement Flying (37) Location -5/Factory Parts ------- > --- POWER (2) -------- (None) > --- PROPULSION (6) --- Nuclear Pulse Thruster Nuclear Pulse Thruster > --- UTILITY (7) ------ Enhanced Optical Array Advanced Terrain Scan Processor Improved Propulsion Shielding > --- WEAPON (2) ------- (None) > --- INVENTORY (5) ---- Micro Fission Core ECM Suite Advanced Hacking Suite Axe Peak State ------------ > --- POWER ------------ (None) > --- PROPULSION ------- Nuclear Pulse Thruster > --- UTILITY ---------- Enhanced Optical Array Improved Sensor Array Improved Signal Interpreter Advanced Terrain Scan Processor Improved Propulsion Shielding > --- WEAPON ----------- Improved Grenade Launcher Chainsword > --- INVENTORY -------- Micro Fission Core ECM Suite Axe [Rating: 31] Favorites ----------- Power Light Deuterium Engine Engine Light Deuterium Engine Propulsion VTOL Module Flight Unit VTOL Module Utility Advanced Terrain Scan Processor Device Structural Scanner Processor Advanced Terrain Scan Processor Protection Improved Light Armor Plating Weapon Chainsword Launcher Improved Grenade Launcher Slashing Weapon Chainsword Build | -11 -10 -9 -8 -7 -6 -5 -5 -5 ------- Run | Yrd Mat Mat Mat Fac Fac Fac Was Fac Slots Evolved 10 | . . 2 2 2 2 2 . . Power 1 | . . . . . . 1 . . Propulsion 4 | . . 2 1 1 . . . . Utility 5 | . . . 1 1 2 1 . . Weapon . | . . . . . . . . . Parts Attached 28 | . 4 3 7 7 . 2 . 5 Power 3 | . . 1 1 1 . . . . Engine 3 | . . 1 1 1 . . . . Core . | . . . . . . . . . Reactor . | . . . . . . . . . Propulsion 12 | . 4 2 2 1 . 1 . 2 Treads . | . . . . . . . . . Leg . | . . . . . . . . . Wheel . | . . . . . . . . . Hover . | . . . . . . . . . Flight 12 | . 4 2 2 1 . 1 . 2 Utility 10 | . . . 2 4 . 1 . 3 Device 3 | . . . . 2 . . . 1 Storage . | . . . . . . . . . Processor 4 | . . . 1 1 . 1 . 1 Hackware . | . . . . . . . . . Protection 3 | . . . 1 1 . . . 1 Artifact . | . . . . . . . . . Weapon 3 | . . . 2 1 . . . . Energy Gun . | . . . . . . . . . Energy Cannon . | . . . . . . . . . Ballistic Gun . | . . . . . . . . . Ballistic Cannon . | . . . . . . . . . Launcher 2 | . . . 2 . . . . . Special Weapon . | . . . . . . . . . Impact Weapon . | . . . . . . . . . Slashing Weapon 1 | . . . . 1 . . . . Piercing Weapon . | . . . . . . . . . Special Melee Weapon . | . . . . . . . . . Unidentified Prototypes . | . . . . . . . . . Parts Lost 15 | . . . 2 2 2 4 . 5 Power . | . . . . . . . . . Propulsion 8 | . . . 2 2 1 2 . 1 Utility 5 | . . . . . 1 2 . 2 Weapon 2 | . . . . . . . . 2 Highest Loss Streak 2 | . . . 1 2 2 2 . 2 To Critical Strikes . | . . . . . . . . . Average Backups 4 | . 3 3 4 4 4 4 5 3 Power . | . 1 1 1 . . . 1 1 Propulsion . | . 2 2 . . . . . . Utility 1 | . . . . 1 2 2 2 1 Weapon 1 | . . . 1 2 2 1 2 1 Tool/Special . | . . . . . . . . . Unused Backups 9 | . 2 . 2 . . 1 . 4 Power 3 | . . . 2 . . . . 1 Propulsion 2 | . 2 . . . . . . . Utility 3 | . . . . . . 1 . 2 Weapon 1 | . . . . . . . . 1 Tool/Special . | . . . . . . . . . Average Slot Usage (%) 45 | . 19 51 67 57 66 33 23 29 Engine 3 | . . 9 7 2 6 1 . . Flight 18 | . 19 42 43 26 20 6 5 3 Device 4 | . . . . 5 13 4 . 3 Processor 9 | . . . 6 11 13 12 11 13 Protection 3 | . . . 7 4 6 . . 3 Slashing Weapon 3 | . . . . 5 6 5 5 2 Peak Build Rating 31 | . 4 10 24 26 25 24 19 31 Average Rating 18 | . 2 9 19 19 24 18 19 21 On Entrance 12 | . . 4 10 17 24 19 19 19 Avg Prop Armor Cover (%) . | . . . . . . . . . Naked Turns 8 | . 8 . . . . . . . Heaviest Build 20 | . . 5 20 15 13 10 3 12 Greatest Support 20 | 3 8 16 20 17 13 9 6 12 Greatest Overweight (x) 2 | . . . . 1 . 2 . 1 Average Overweight (x) . | . . . . . . . . . Largest Inventory Capacity 5 | 5 5 5 5 5 5 5 5 5 Average Capacity 5 | 5 5 5 5 5 5 5 5 5 Most Carried 5 | 1 5 5 5 5 5 5 5 5 Average Carried 4 | . 3 4 4 4 4 4 5 3 Final Capacity 5 | 5 5 5 5 5 5 5 5 5 Final Carried 5 | 1 5 5 5 4 5 5 5 4 Class Distribution -------------------- 41% | Sprinter 30% | Mutant 27% | Scout Dominant Class ---------------- Sprinter | -9/Materials Sprinter | -8/Materials Sprinter | -7/Factory Scout | -6/Factory Mutant | -5/Factory Mutant | -5/Waste Scout | -5/Factory Resources | -11 -10 -9 -8 -7 -6 -5 -5 -5 ----------- Run | Yrd Mat Mat Mat Fac Fac Fac Was Fac Matter Collected 319 | 88 . . . 124 107 . . . Remotely . | . . . . . . . . . Salvage Created 74 | . . . 15 32 27 . . . Parts 16 | . . . 6 6 4 . . . Haulers Intercepted . | . . . . . . . . . Recyclers Shooed . | . . . . . . . . . Parts Field Recycled . | . . . . . . . . . Retrieved Matter . | . . . . . . . . . Parts Self-Destructed . | . . . . . . . . . Prevented . | . . . . . . . . . Parts Restored . | . . . . . . . . . Kills | -11 -10 -9 -8 -7 -6 -5 -5 -5 ------- Run | Yrd Mat Mat Mat Fac Fac Fac Was Fac Combat Hostiles Destroyed 5 | . . . 4 . . 1 . . AOE 5 | . . . 4 . . 1 . . Classes Destroyed 4 | . . . 3 1 . . . . Builder 3 | . . . . 2 1 . . . Tunneler 1 | . . . 1 . . . . . Watcher 1 | . . . 1 . . . . . Swarmer 5 | . . . 4 . . 1 . . Best Kill Streak 6 | . . . 6 1 1 1 . . Combat Bots Only 4 | . . . 4 . . 1 . . Max Kills in Single Turn 3 | . . . 3 1 1 1 . . Gunslinging . | . . . . . . . . . Exploded 2 | . . . 2 . . 1 . . Melee . | . . . . . . . . . Uniques/NPCs Destroyed . | . . . . . . . . . Combat | -11 -10 -9 -8 -7 -6 -5 -5 -5 -------- Run | Yrd Mat Mat Mat Fac Fac Fac Was Fac Hostile Shots Fired 227 | . . 16 37 4 12 19 . 139 Missed 123 | . . 9 21 2 8 9 . 74 Hits 104 | . . 7 16 2 4 10 . 65 Melee 2 | . . . 2 . . . . . Projectile 102 | . . 7 14 2 4 10 . 65 AOE 4 | . . . 2 . 2 . . . Critical Strikes 5 | . . . 2 1 . 1 . 1 Damage Taken 1977 | . . 89 244 53 211 376 . 1004 Core 1095 | . . 12 37 . 35 241 . 770 Absorbed by Shields . | . . . . . . . . . Redirected to Shielding 67 | . . . . . . . . 67 Core Remaining (%) 97 | 100 100 97 93 100 95 . . . Volleys Fired 6 | . . . 3 . . 3 . . Largest 1 | . . . 1 . . 1 . . Hottest 36 | . . . 36 . . 36 . . Shots Fired 6 | . . . 3 . . 3 . . Gun . | . . . . . . . . . Cannon . | . . . . . . . . . Launcher 6 | . . . 3 . . 3 . . Special . | . . . . . . . . . Kinetic . | . . . . . . . . . Thermal . | . . . . . . . . . Explosive 6 | . . . 3 . . 3 . . Electromagnetic . | . . . . . . . . . Robot Hit Streak 1 | . . . . . . 1 . . Robot Miss Streak 1 | . . . . . . 1 . . Penetration Max . | . . . . . . . . . Secondary Targets . | . . . . . . . . . Shots Hit Robots 7 | . . . . 2 1 2 . 2 Core Hits 13 | . . . 10 . 1 2 . . Critical Kills . | . . . . . . . . . Critical Parts Destroyed . | . . . . . . . . . Critical Strikes . | . . . . . . . . . Melee Attacks 23 | . . . . 4 7 5 . 7 Impact . | . . . . . . . . . Slashing 23 | . . . . 4 7 5 . 7 Piercing . | . . . . . . . . . Sneak Attacks 3 | . . . . 2 1 . . . Combat Hostiles . | . . . . . . . . . Follow-up Attacks . | . . . . . . . . . Damage Inflicted 958 | . . . 412 188 82 203 . 73 Guns . | . . . . . . . . . Cannons . | . . . . . . . . . Explosions 611 | . . . 412 . . 199 . . Melee 318 | . . . . 166 82 . . 70 Ramming 29 | . . . . 22 . 4 . 3 Kinetic . | . . . . . . . . . Thermal . | . . . . . . . . . Explosive 611 | . . . 412 . . 199 . . Electromagnetic . | . . . . . . . . . Impact . | . . . . . . . . . Slashing 318 | . . . . 166 82 . . 70 Piercing . | . . . . . . . . . Highest Corruption 11 | . . . 1 4 1 4 11 11 Average Corruption 5 | . . . 1 4 1 4 6 11 Corruption Purged . | . . . . . . . . . Corruption Blocked . | . . . . . . . . . Effects 14 | . . . . 4 . 2 1 7 Message Errors 4 | . . . . 2 . . . 2 Matter Fused 1 | . . . . . . . . 1 Energy Discharges 3 | . . . . 1 . 1 . 1 Parts Rejected 1 | . . . . . . 1 . . Data Loss (minor) 1 | . . . . 1 . . . . Data Loss (major) 2 | . . . . . . . 1 1 Misdirections 2 | . . . . . . . . 2 Overload Shots . | . . . . . . . . . Overflow Damage 172 | . . . 39 106 . 27 . . Projectiles . | . . . . . . . . . Explosions 66 | . . . 39 . . 27 . . Melee 106 | . . . . 106 . . . . Knockbacks . | . . . . . . . . . Impact . | . . . . . . . . . Kinetic . | . . . . . . . . . Secondary . | . . . . . . . . . Self-Inflicted Damage 141 | . . . . 22 . 118 . 1 Shots 2 | . . . . . . 2 . . Rammed 3 | . . . . . . 1 . 2 Targets Rammed 3 | . . . . . . 1 . 2 Kicked . | . . . . . . . . . Crushed . | . . . . . . . . . Highest Temperature 93 | . . 6 93 . . . . . Average Temperature 53 | . . 4 56 . . . . . Received Heat Transfer 234 | . . 18 45 36 18 99 . 18 Siege Activations . | . . . . . . . . . Martial Activations . | . . . . . . . . . Shielding Activations . | . . . . . . . . . Robots Disrupted . | . . . . . . . . . Combat Hostiles . | . . . . . . . . . Robots Corrupted . | . . . . . . . . . Combat Hostiles . | . . . . . . . . . Parts Fried . | . . . . . . . . . Impact Corruptions . | . . . . . . . . . Robots Melted . | . . . . . . . . . Combat Hostiles . | . . . . . . . . . Parts Melted . | . . . . . . . . . Heat Transferred . | . . . . . . . . . Parts Sabotaged . | . . . . . . . . . Parts Stolen . | . . . . . . . . . Parts Stripped . | . . . . . . . . . Power Chain Reactions . | . . . . . . . . . Alert | -11 -10 -9 -8 -7 -6 -5 -5 -5 ------- Run | Yrd Mat Mat Mat Fac Fac Fac Was Fac Maximum Alert Level . | . . . . . . . . . Low Security (%) 100 | 100 100 100 100 100 100 100 100 100 Level 1 . | . . . . . . . . . Level 2 . | . . . . . . . . . Level 3 . | . . . . . . . . . Level 4 . | . . . . . . . . . Level 5 . | . . . . . . . . . High Security . | . . . . . . . . . Max Security . | . . . . . . . . . Peak Influence 175 | . . 104 169 85 175 106 26 45 Initial 70 | . . . 50 67 36 70 26 11 Average 45 | . . 25 99 59 70 61 23 10 Influence Increases 711 | . . 129 149 68 189 96 . 80 Destroy 0b10 Robot/C 100 | . . . 80 . . 20 . . Destroy 0b10 Robot/NC 25 | . . . 10 10 5 . . . Destroy Leader 12 | . . . 12 . . . . . Successful Hack 38 | . . 9 . 11 13 . . 5 Select Force Hacks 30 | . . . . 30 . . . . Disable Machine 45 | . . . . . . 30 . 15 Destroy Structure 71 | . . . 17 2 6 46 . . Partial Spotted 75 | . . . . 15 60 . . . Lose Combat Pursuer 315 | . . 120 30 . 105 . . 60 Influence Decreases 711 | . . 10 119 142 119 165 60 96 Entered New Map 320 | . . . 69 82 39 75 50 5 Time Decay 265 | . . 10 30 40 60 50 10 65 Lost Part 126 | . . . 20 20 20 40 . 26 Squads Dispatched 14 | . . 1 2 5 5 . . 1 Investigation 11 | . . 1 1 5 3 . . 1 Extermination . | . . . . . . . . . Reinforcement 3 | . . . 1 . 2 . . . Assault . | . . . . . . . . . Garrison . | . . . . . . . . . Intercept . | . . . . . . . . . Searches Triggered . | . . . . . . . . . Construction Impeded . | . . . . . . . . . Haulers Reinforced . | . . . . . . . . . Active Scanning Responses . | . . . . . . . . . Cargo Convoy Interrupts . | . . . . . . . . . Stealth | -11 -10 -9 -8 -7 -6 -5 -5 -5 --------- Run | Yrd Mat Mat Mat Fac Fac Fac Was Fac Distress Signals 5 | . . 1 2 . . 1 . 1 Communications Jammed . | . . . . . . . . . Distress Signals . | . . . . . . . . . Times Spotted 98 | . 1 17 20 9 15 9 5 22 Peak Tracking Total 16 | . 1 11 13 10 9 8 5 16 Tactical Retreats 6 | . . 2 1 . 1 . . 2 Traps | -11 -10 -9 -8 -7 -6 -5 -5 -5 ------- Run | Yrd Mat Mat Mat Fac Fac Fac Was Fac Traps Triggered 3 | . . . . 2 . 1 . . Indirectly . | . . . . . . . . . Trap Hack Attempts . | . . . . . . . . . Triggered . | . . . . . . . . . Disarmed . | . . . . . . . . . Reprogrammed . | . . . . . . . . . Reused . | . . . . . . . . . Traps Extracted . | . . . . . . . . . Installed . | . . . . . . . . . Triggered . | . . . . . . . . . Machines | -11 -10 -9 -8 -7 -6 -5 -5 -5 ---------- Run | Yrd Mat Mat Mat Fac Fac Fac Was Fac Machines Disabled 3 | . . . . . . 2 . 1 Max in Single Turn 2 | . . . . . . 2 . 1 Machines Repaired . | . . . . . . . . . Machines Dismantled . | . . . . . . . . . Machines Sabotaged . | . . . . . . . . . Overloaded Fab Kills . | . . . . . . . . . Hacking | -11 -10 -9 -8 -7 -6 -5 -5 -5 --------- Run | Yrd Mat Mat Mat Fac Fac Fac Was Fac Machines Accessed 13 | . . 2 2 5 3 . . 1 Terminals 10 | . . 1 2 3 3 . . 1 Fabricators . | . . . . . . . . . Repair Stations . | . . . . . . . . . Recycling Units 2 | . . 1 . 1 . . . . Scanalyzers 1 | . . . . 1 . . . . Garrison Access . | . . . . . . . . . Total Hacks 49 | . . 8 8 19 11 . . 3 Successful 17 | . . 3 3 6 4 . . 1 Failed 31 | . . 5 5 12 7 . . 2 Catastrophic 9 | . . 2 3 1 3 . . . Database Lockouts 1 | . . . . 1 . . . . Manual 28 | . . 7 7 6 5 . . 3 Terminals 41 | . . 7 8 12 11 . . 3 Fabricators . | . . . . . . . . . Repair Stations . | . . . . . . . . . Recycling Units 4 | . . 1 . 3 . . . . Scanalyzers 4 | . . . . 4 . . . . Garrison Access . | . . . . . . . . . Terminal Hacks 6 | . . 1 1 1 3 . . . Level Access Points 2 | . . 1 . . 1 . . . Terminal Index 2 | . . . . 1 1 . . . Zone Layout 2 | . . . 1 . 1 . . . Fabricator Hacks . | . . . . . . . . . Repair Station Hacks . | . . . . . . . . . Recycling Unit Hacks 3 | . . 1 . 2 . . . . Process 1 | . . . . 1 . . . . Report Inventory 2 | . . 1 . 1 . . . . Scanalyzer 1 | . . . . 1 . . . . Retrieve Study 1 | . . . . 1 . . . . Garrison Access Hacks . | . . . . . . . . . Unauthorized Hacks 7 | . . 1 2 2 1 . . 1 Terminals 6 | . . 1 2 1 1 . . 1 Botnet 6 | . . 1 2 1 1 . . 1 Fabricators . | . . . . . . . . . Repair Stations . | . . . . . . . . . Recycling Units . | . . . . . . . . . Scanalyzers 1 | . . . . 1 . . . . Extract 1 | . . . . 1 . . . . Garrison Access . | . . . . . . . . . Data Cores Recovered . | . . . . . . . . . Used . | . . . . . . . . . Hacking Detections 13 | . . 2 2 5 3 . . 1 Full Trace Events 11 | . . 1 2 4 3 . . 1 Feedback Events 2 | . . . 1 . 1 . . . Corruption 2 | . . . 1 . 1 . . . Feedback Blocked . | . . . . . . . . . Robot Schematics Acquired . | . . . . . . . . . Robots Built . | . . . . . . . . . Authchips . | . . . . . . . . . Time . | . . . . . . . . . Total Robot Build Rating . | . . . . . . . . . Part Schematics Acquired 2 | . . . . 2 . . . . Parts Built . | . . . . . . . . . Authchips . | . . . . . . . . . Time . | . . . . . . . . . Total Part Build Rating . | . . . . . . . . . Part Studies Acquired 1 | . . . . 1 . . . . Parts Repaired . | . . . . . . . . . Time . | . . . . . . . . . Parts Recycled . | . . . . . . . . . Recycled Matter 1 | . . . . 1 . . . . Retrieved Matter . | . . . . . . . . . Retrieved Components . | . . . . . . . . . Parts Scanalyzed . | . . . . . . . . . Part Schematics Acquired . | . . . . . . . . . Parts Damaged . | . . . . . . . . . Bothacking | -11 -10 -9 -8 -7 -6 -5 -5 -5 ------------ Run | Yrd Mat Mat Mat Fac Fac Fac Was Fac Used RIF Installer . | . . . . . . . . . Robots Hacked . | . . . . . . . . . Non-combat . | . . . . . . . . . Combat . | . . . . . . . . . Robot Hacks Applied . | . . . . . . . . . Relay Couplers Released . | . . . . . . . . . Fabnet Peak Effective % . | . . . . . . . . . Robots Rewired . | . . . . . . . . . Allies Hacked . | . . . . . . . . . Hacks Repelled . | . . . . . . . . . Allies | -11 -10 -9 -8 -7 -6 -5 -5 -5 -------- Run | Yrd Mat Mat Mat Fac Fac Fac Was Fac Total Allies . | . . . . . . . . . Largest Group . | . . . . . . . . . Highest-Rated Group . | . . . . . . . . . Highest-Rated Ally . | . . . . . . . . . Total Orders . | . . . . . . . . . Ally Attacks . | . . . . . . . . . Total Damage . | . . . . . . . . . Kills . | . . . . . . . . . Allies Corrupted . | . . . . . . . . . Allies Melted . | . . . . . . . . . Intel | -11 -10 -9 -8 -7 -6 -5 -5 -5 ------- Run | Yrd Mat Mat Mat Fac Fac Fac Was Fac Active Infowar (turns) 481 | . . . . 78 120 104 25 154 Optics 268 | . . . . . . 89 25 154 Sensors 112 | . . . . . . . . 112 Terrain 168 | . . . . 50 118 . . . Structural 237 | . . . . 30 120 87 . . Robot Analysis Total . | . . . . . . . . . Derelict Logs Recovered . | . . . . . . . . . Drone Launches . | . . . . . . . . . Drone Recoveries . | . . . . . . . . . Exploration | -11 -10 -9 -8 -7 -6 -5 -5 -5 ------------- Run | Yrd Mat Mat Mat Fac Fac Fac Was Fac Turns Passed 681 | 10 48 55 69 96 120 104 25 154 Spaces Moved 1576 | 18 98 191 179 228 317 195 61 289 Core 120 | 18 15 . . . . 4 . 83 Treads . | . . . . . . . . . Legs . | . . . . . . . . . Wheels . | . . . . . . . . . Hover . | . . . . . . . . . Flight 1456 | . 83 191 179 228 317 191 61 206 Fastest Speed 24 | 50 32 26 24 27 30 34 40 37 Average Speed 32 | 50 37 26 25 28 30 35 40 42 Slowest Speed 195 | 50 50 26 27 110 34 195 40 120 Overloaded Moves . | . . . . . . . . . Propulsion Burnouts . | . . . . . . . . . Robots Hopped 20 | . . 4 5 1 2 2 . 6 Potential Cave-ins . | . . . . . . . . . Cave-ins Triggered 1 | . . . . . . 1 . . Exploration Rate (%) 23 | 3 25 25 32 8 18 13 77 10 Regions Visited 8 Branch Regions . Pre-discovered Areas . | . . . . . . . . . Known Exits Taken 4 | . . 1 1 1 1 . . . Unknown Exits Taken 2 | 1 1 . . . . . . . Scrap Searched . | . . . . . . . . . Spaces Dug 13 | . . . . 2 6 5 . . Terrain Destroyed 66 | . . . 22 2 6 36 . . Melee 13 | . . . . 2 6 5 . . Projectile . | . . . . . . . . . AOE 53 | . . . 22 . . 31 . . Terrain Rammed 1 | . . . . 1 . . . . Walls Destroyed . | . . . . . . . . . Machines Disabled . | . . . . . . . . . Actions | -11 -10 -9 -8 -7 -6 -5 -5 -5 --------- Run | Yrd Mat Mat Mat Fac Fac Fac Was Fac Total 1670 | 18 111 191 196 247 329 218 60 300 Wait 9 | . . . . 4 2 2 . 1 Move 1532 | 17 97 183 169 225 312 191 60 278 Hop 17 | . . 3 4 1 2 2 . 5 Pick Up 23 | 1 6 2 6 1 3 3 . 1 Fast Attach 18 | . 2 . 2 7 . 3 . 4 Attach 15 | . . 3 5 2 1 2 . 2 Detach 4 | . . . 2 . . 2 . . Swap 4 | . 2 . 1 1 . . . . Drop 15 | . 4 . 4 1 2 4 . . Fire 6 | . . . 3 . . 3 . . Melee 23 | . . . . 4 7 5 . 7 Ram 4 | . . . . 1 . 1 . 2 Kick . | . . . . . . . . . Crush . | . . . . . . . . . Escape Stasis . | . . . . . . . . . Rewire . | . . . . . . . . . Trap . | . . . . . . . . . Miscellaneous . | . . . . . . . . . Route ------- -11/Scrapyard -10/Materials -9/Materials (discovered 3 exits: *Mat x3) -8/Materials -7/Factory -6/Factory (discovered 4 exits: *Fac x4) -5/Factory -5/Waste -5/Factory History --------- Turn | Location | Event 4 | -11/Scrapyard | Discovered new exit (range 15) 11 | -11/Scrapyard | Entered Materials 55 | -10/Materials | Discovered new exit (range 15) 59 | -10/Materials | Entered another Materials area 59 | -9/Materials | Evolved 2 slots: Propulsion x2 86 | -9/Materials | Identified exit to Materials 114 | -9/Materials | Entered another Materials area 114 | -8/Materials | Evolved 2 slots: Propulsion x1, Utility x1 180 | -8/Materials | Discovered new exit (range 15) 183 | -8/Materials | Identified exit to Factory 183 | -8/Materials | Entered Factory 183 | -7/Factory | Evolved 2 slots: Propulsion x1, Utility x1 252 | -7/Factory | Central database locked down 276 | -7/Factory | Discovered new exit (range 13) 279 | -7/Factory | Identified exit to Factory 279 | -7/Factory | Entered another Factory area 279 | -6/Factory | Evolved 2 slots: Utility x2 315 | -6/Factory | Identified exit to Factory 399 | -6/Factory | Entered another Factory area 399 | -5/Factory | Evolved 2 slots: Power x1, Utility x1 431 | -5/Factory | Crushed by falling debris 503 | -5/Factory | Sucked down chute 503 | -5/Factory | Entered Waste 507 | -5/Waste | Spotted C-40 Crusher 512 | -5/Waste | Spotted C-40 Crusher 516 | -5/Waste | Spotted C-40 Crusher 517 | -5/Waste | Spotted C-40 Crusher 518 | -5/Waste | EMP discharged 518 | -5/Waste | System corruption reached 10% 519 | -5/Waste | Discovered new exit (range 22) 522 | -5/Waste | Spotted C-40 Crusher 522 | -5/Waste | Spotted C-40 Crusher 528 | -5/Waste | Entered Factory 632 | -5/Factory | Core integrity fell below 50% 668 | -5/Factory | Core integrity fell below 20% 682 | -5/Factory | Destroyed by S-27 Virus with Autogun Last Messages --------------- Awaiting botnet instructions. 00617_ ALERT: Suspicious activity at Terminal F016. Dispatching Investigation squad. 00622_ Slug penetrates Wall. 00626_ Nuclear Pulse Thruster destroyed. 00627_ System corrupted: Substantial component data lost. 00627_ Penetrated by Slug. 00633_ Imp. Signal Interpreter destroyed. 00650_ Acquired Adv. Hacking Suite. 00652_ Slammed into R-10 Processor. 00659_ U-05 Engineer destroyed. 00665_ System corrupted: Energy discharge (-34). 00668_ K-01 Serf destroyed. 00671_ Acquired Nuclear Pulse Thruster. 00671_ Imp. Sensor Array destroyed. 00672_ Acquired Nuclear Pulse Thruster. 00674_ S-27 Virus destroyed. 00680_ W-25 Informer sends out distress signal. 00680_ U-05 Engineer works on Assembly Bed. Map ----- +----------------------------------------------------+ | ?????????????????????????????????????# #??????? | | ?????????????????????????????????????+ #??????? | | ?????????????????????????????????????# #??????? | | ????????????????????????????????????## #??????? | | ???????????????????????##+########### #??????? | | ??????????????????????## #??????? | | ??????????????????????+ +??????? | | ???????????????????????# #??????? | | ???????????????????????# #??????? | | ??????????????????????## #??????? | | ??????????????????????# #??????? | | ??????????????????????# ######## | | ??????????????????????+ | | ??????????????????????# | | ??????????????????????# | | ??????????????????????# | | ??????????????????????# s *%=% ######## | | ??????????????????????# s#######+#####????? | | ??????????????????????# s #??# % #????? | | ??????????????????????# s #??# ! #????? | | ??????????????????????# < s #??# #????? | | ??????????????????????# u s #??# ! #????? | | ??????????????????????# #??# #????? | | ??????????????????????# #??#""" #????? | | ??????????????????????# !#??#""" #????? | | ??????????????????????# @" #??#""" #????? | | ??????????????????????# "" #??# #????? | | ??????????????????????# G #??##########????? | | ??????????????????????# "" g #???????????????? | | ?????????????????????? " #???????????????? | | ????????????????????? g #???????????????? | | ???????????????????? g #???????????????? | | ???????????????????####### T## #???????????????? | | ?????????????????????????##### g/ ??????????????? | | ?????????????????????????????# # ?????????????? | | ?????????????????????????????? w # "????????????? | | ?????????????????????????????? #? ""???????????? | | ?????????????????????????????? #?? ???????????? | | ?????????????????????????????? #???#???????????? | | ?????????????????????????????? #???????????????? | | ?????????????????????????????? #???????????????? | | ?????????????????????????????????????????????????? | | ?????????????????????????????????????????????????? | | ?????????????????????????????????????????????????? | | ?????????????????????????????????????????????????? | | ?????????????????????????????????????????????????? | | ?????????????????????????????????????????????????? | | ?????????????????????????????????????????????????? | | ?????????????????????????????????????????????????? | | ?????????????????????????????????????????????????? | +----------------------------------------------------+ Best States ------------- Heat Dissipation 40 Energy Generation 14 Energy Capacity 250 Matter Stores 178 Matter Capacity 300 Sight Range 22 Robot Scan Range 15 Terrain Scan Range 14 Terrain Scan Density 210 Armor Coverage 600 Propulsion Shielding 66 Evasion (%) 65 Item Schematics ----------------- Hvy. Laser | -7/Factory | Extracted Powered Hammer | -7/Factory | Extracted Robot Schematics ------------------ None Fabricated ------------ Nothing Repaired ---------- Nothing Studied --------- Flight Unit | -7/Factory | Hacked Alien Tech Used ----------------- None Achievements -------------- None Challenges ------------ None Game ------ Seed AntimissileMassThrower Manual? 0 Play Time 00:26:44 Cumulative 323.1 hours Start 2026.07.12 @ 19:08:16 End 2026.07.12 @ 19:32:16 Sessions 1 Manual Loads 0 Difficulty Rogue Special Mode None Game No. 391 Rogue 391 Adventurer 0 Explorer 0 Win Type - Total 21 Types 13/0/3/1/1/0/1/1/0/1 Lore% 78 Gallery% 74 Achievement% 64 Wizard Run 0 Options --------- Layout 1 ASCII 0 Keyboard 1 Movement Arrows Keybinds 0 Fullscreen 2 Font 36/Smallcaps Map View 50x40 Zoom Use 0% Tactical HUD 1 Map Filters NONE Filters NONE Steam 1 RUN: 9299f63b-dcb2-47ae-b08f-44afd3599a50